bitfinex/quotes_ETHUSD_20220105
["timestamp","ask_amount","ask_price","bid_price","bid_amount"]
[1641410215712,0.3,3709.7,3709.6,2.73303972]
[1641410215912,0.3,3709.7,3709.6,2.7301976]
[1641410216112,0.3,3709.7,3709.5,1.34761]
[1641410216113,0.15,3709.7,3709.5,4.0778076]
[1641410216765,0.70669214,3709.8,3709.5,4.0778076]
[1641410216961,0.6739,3709.9,3709.5,4.0778076]
[1641410217562,0.03513934,3710.3,3709.6,16.6]
[1641410217763,0.00113685,3710.3,3709.7,2.7301976]
[1641410217964,0.00113685,3710.3,3709.9,0.52245347]
[1641410218162,0.00113685,3710.3,3710.0,1.02039326]
[1641410218563,0.00113685,3710.3,3710.1,2.7301976]
[1641410218766,0.00113685,3710.3,3710.2,3.42363]
[1641410218962,1.71016225,3710.9,3710.2,0.67363]
[1641410219162,1.74344038,3710.9,3710.2,0.67363]
[1641410219362,0.00113684,3710.5,3710.2,0.67363]
[1641410221013,0.00113684,3710.5,3710.4,1.82753074]
[1641410221617,0.00113684,3710.5,3710.3,1.82753074]
[1641410221817,0.03972503,3710.7,3710.3,1.82753074]
[1641410222117,2.90423123,3710.9,3710.3,1.82753074]
[1641410222318,2.69607685,3710.7,3710.3,0.67373]
[1641410222524,2.73467115,3710.7,3710.3,0.67373]
[1641410222717,0.67361,3710.6,3710.3,0.67373]
[1641410222915,0.6737538,3710.5,3710.3,0.67373]
[1641410223117,0.6737538,3710.5,3710.3,1.82761394]
[1641410223118,0.70946651,3710.5,3710.3,1.82761394]
[1641410223316,4.68138785,3710.4,3710.3,1.82761394]
[1641410223717,6.33138785,3710.4,3710.3,1.82875078]
[1641410223917,6.33138785,3710.4,3710.3,0.00113684]
[1641410224168,4.75,3710.3,3710.0,5.078e-05]
[1641410224373,6.79696,3710.2,3709.7,1.41579599]
[1641410224572,1.3479363,3710.0,3709.7,1.41579599]
[1641410224772,1.67852552,3710.0,3709.5,3.64014621]
[1641410224975,1.67852552,3710.0,3709.2,3.64014621]
[1641410225180,1.14340807,3709.3,3709.2,3.64014621]
[1641410225376,1.44340807,3709.3,3709.2,3.64014621]
[1641410225575,1.74340807,3709.3,3709.2,3.64639887]
[1641410226176,0.6,3709.3,3709.2,3.64639887]
[1641410226376,0.6,3709.3,3709.2,0.00718549]
[1641410227375,2.05483142,3709.4,3709.2,0.00718549]
[1641410227577,1.38078512,3709.4,3709.2,0.00718549]
[1641410227782,1.38078512,3709.4,3709.3,0.00568424]
[1641410228811,1.98078512,3709.4,3709.3,0.00568424]
[1641410230514,0.03268512,3709.4,3709.3,0.00568424]
[1641410230713,2.6737,3710.5,3709.3,0.00568424]
[1641410230914,2.6737,3710.5,3710.1,1.09590415]
[1641410231112,0.6737,3710.5,3710.1,1.09590415]
[1641410231761,1.3474,3710.5,3710.1,1.09590415]
[1641410232359,1.3474,3710.5,3710.2,0.6737]
[1641410232760,1.3474,3710.5,3710.2,1.54938212]
[1641410233467,1.3474,3710.5,3710.2,3.41829384]
[1641410233666,0.00170527,3710.6,3710.2,3.41829384]
[1641410233868,0.00170527,3710.6,3710.3,1.0]
[1641410234069,0.00113684,3710.5,3710.4,7.58524333]
[1641410234269,2.0,3710.9,3710.5,5.25]
[1641410234465,2.0,3710.9,3710.6,0.67351]
[1641410234666,0.00170527,3710.8,3710.6,1.67351]
[1641410234869,0.67352,3711.4,3710.7,4.25625688]
[1641410235067,0.67352,3711.4,3711.3,1.29211044]
[1641410235723,1.34704,3711.4,3711.3,1.29211044]
[1641410235918,0.67352,3711.4,3711.3,1.29211044]
[1641410236721,0.67352,3711.4,3711.3,3.99712635]
[1641410237721,2.0,3711.5,3711.3,2.16779256]
[1641410238523,2.0,3711.5,3711.4,0.87568212]
[1641410238925,2.00397897,3711.5,3711.4,0.87568212]
[1641410239563,0.0127454,3712.8,3711.4,0.87568212]
[1641410239564,0.67336,3712.0,3711.4,1.19868212]
[1641410239763,1.34671,3712.6,3711.9,0.67336]
[1641410239764,1.34671,3712.4,3711.9,0.67336]
[1641410239965,2.02033,3712.7,3712.0,0.323]
[1641410240165,3.08969983,3712.7,3712.0,0.323]
[1641410240363,0.00568423,3712.5,3712.0,0.323]
[1641410240564,0.67344,3712.2,3712.0,0.323]
[1641410240764,0.67344,3712.2,3712.0,1.87210212]
[1641410240971,0.00341054,3712.1,3712.0,1.87210212]
[1641410242370,0.66572506,3712.2,3712.0,1.87210212]
[1641410242570,0.62685054,3712.2,3712.0,1.87210212]
[1641410242773,0.66637003,3712.2,3712.0,1.87210212]
[1641410243018,0.66637003,3712.2,3712.1,2.24781698]
[1641410243414,0.66637003,3712.2,3711.8,1.82933379]
[1641410243619,0.66637003,3712.2,3711.2,3.17642379]
[1641410243816,0.67357,3711.8,3711.2,3.17642379]
[1641410244115,2.0,3712.2,3711.2,3.17642379]
[1641410244317,2.0,3712.2,3711.2,1.82933379]
[1641410244318,2.02076,3712.0,3711.2,1.82933379]
[1641410244518,2.02076,3712.0,3711.1,0.323]
[1641410244519,2.02072,3711.8,3711.1,2.15233379]
[1641410244720,1.3471539,3711.6,3711.1,2.15233379]
[1641410244918,2.05117839,3711.6,3711.2,0.00511581]
[1641410245119,1.37759449,3711.6,3711.2,0.00511581]
[1641410246228,0.6735587,3711.5,3711.2,0.00511581]
[1641410246424,1.2656486,3711.5,3711.2,0.00511581]
[1641410246661,2.67376,3711.4,3711.0,0.00625266]
[1641410246866,2.67376,3711.4,3710.4,3.41772068]
[1641410246867,1.34937145,3711.1,3710.4,2.74400068]
[1641410247065,2.0366068,3710.8,3710.4,2.74400068]
[1641410247666,0.6737182,3710.7,3710.3,1.19798515]
[1641410247867,2.02122,3710.6,3710.4,0.67371]
[1641410248064,2.02122,3710.6,3710.4,0.67712054]
[1641410248266,2.02122,3710.6,3710.4,0.00341054]
[1641410248666,2.02122,3710.6,3710.2,1.84737]
[1641410248667,2.69496,3710.6,3710.3,0.00397896]
[1641410248870,0.6736958,3710.5,3710.3,0.00397896]
[1641410249067,0.70891533,3710.5,3710.3,1.3354682]
[1641410249266,0.70891533,3710.5,3710.4,0.67371]
[1641410250069,0.03521953,3710.5,3710.4,0.67371]
[1641410250408,2.69496,3710.6,3710.4,0.67371]
[1641410250811,2.72617774,3710.6,3710.5,0.00284212]
[1641410251211,2.02122,3710.6,3710.5,0.00284212]
[1641410251713,2.02122,3710.6,3710.5,18.34779127]
[1641410251911,2.32122,3710.6,3710.5,18.34779127]
[1641410252312,2.32122,3710.6,3710.5,2.74779127]
[1641410253415,2.32122,3710.6,3710.5,0.00284212]
[1641410254776,2.32122,3710.6,3710.5,15.60284212]
[1641410255380,2.32122,3710.6,3710.5,0.00284212]
[1641410255577,2.32122,3710.6,3710.5,15.60284212]
[1641410257483,2.32122,3710.6,3710.5,19.97780867]
[1641410257484,2.02122,3710.6,3710.5,19.97780867]
[1641410257686,0.67371,3710.7,3710.5,21.30080867]
[1641410257918,0.6734,3711.0,3710.9,0.67337]
[1641410258118,1.34679,3711.4,3710.9,0.99637]
[1641410258321,0.00113685,3711.2,3710.9,0.99637]
[1641410258519,0.00113685,3711.2,3711.0,17.50362063]
[1641410258718,6.17,3712.2,3711.1,7.673]
[1641410258922,6.12,3712.2,3711.2,15.6]
[1641410259124,0.00341054,3711.8,3711.6,0.67328]
[1641410259319,0.00341054,3711.8,3711.7,15.6]
[1641410259519,1.34661,3712.0,3711.7,15.6]
[1641410259721,1.37850267,3712.0,3711.7,17.428961]
[1641410259922,0.00397896,3711.9,3711.7,17.428961]
[1641410260122,0.00397896,3711.9,3711.7,20.17305761]
[1641410260319,0.00341054,3711.8,3711.7,20.17305761]
[1641410260920,0.00341054,3711.8,3711.7,17.428961]
[1641410261121,0.00341054,3711.8,3711.7,18.428961]
[1641410261766,0.00341054,3711.8,3711.7,17.428961]
[1641410262359,0.00341054,3711.8,3711.7,1.23041464]
[1641410262762,0.00341054,3711.8,3711.7,3.9244698]
[1641410263363,0.00341054,3711.8,3711.7,2.74405516]
[1641410263564,0.00341054,3711.8,3711.6,0.67328]
[1641410263764,0.00341054,3711.8,3711.5,1.34655]
[1641410263963,0.00284211,3711.7,3711.5,1.34655]
[1641410264167,0.67635211,3711.7,3711.3,0.67357]
[1641410264369,0.00227369,3711.6,3711.3,1.82963715]
[1641410264565,0.00227369,3711.6,3711.1,1.84706]
[1641410264764,2.9210291,3711.7,3711.1,1.84706]
[1641410264765,0.00170527,3711.5,3711.1,1.84706]
[1641410265165,0.00113684,3711.4,3711.1,1.84706]
[1641410265433,1.34834684,3711.4,3711.1,0.5]
[1641410265819,1.34834684,3711.4,3710.6,0.00227369]
[1641410266224,0.7044004,3711.0,3710.6,2.70139834]
[1641410266624,1.0044004,3711.0,3710.8,0.67368]
[1641410267129,0.3,3711.0,3710.9,0.00170527]
[1641410267324,0.63978649,3711.1,3710.8,0.67368]
[1641410267529,0.6736795,3710.9,3710.8,0.67368]
[1641410267725,0.70745475,3710.9,3710.8,0.67368]
[1641410267925,1.00745475,3710.9,3710.8,0.67368]
[1641410268325,0.3,3710.9,3710.8,0.67368]
[1641410269572,1.01028055,3711.0,3710.8,0.67368]
[1641410269777,0.71028055,3711.0,3710.8,1.17368]
[1641410270879,0.3,3710.9,3710.8,1.17368]
[1641410271073,1.01028055,3711.0,3710.8,1.17368]
[1641410271274,0.3,3710.9,3710.8,1.17368]
[1641410271672,1.01028055,3711.0,3710.8,1.17368]
[1641410272381,0.3,3710.9,3710.8,1.17368]
[1641410275919,0.3,3711.0,3710.8,19.39448359]
[1641410276119,0.3,3711.0,3710.9,19.1991931]
[1641410276321,0.00113684,3711.4,3710.9,19.6991931]
[1641410276522,0.3,3711.7,3711.2,15.6]
[1641410276768,0.00227369,3711.3,3711.2,15.6]
[1641410276967,0.3,3711.7,3711.4,15.6]
[1641410277165,2.03648129,3711.8,3711.5,2.6166743]
[1641410277470,2.03648129,3711.8,3711.5,19.20725238]
[1641410277471,0.00113685,3711.7,3711.5,19.20725238]
[1641410277664,0.00113685,3711.7,3711.6,22.79777077]
[1641410277866,0.00113685,3711.7,3711.6,23.18577077]
[1641410278166,0.03459117,3712.6,3711.7,20.85]
[1641410278467,0.00397897,3712.4,3712.0,0.0873]
[1641410278665,1.34641,3712.8,3712.2,4.2]
[1641410278865,1.38230126,3712.8,3712.4,0.67319]
[1641410279067,0.03182479,3712.7,3712.5,15.6]
[1641410279269,0.00454739,3713.2,3712.5,15.988]
[1641410279470,0.0345971,3713.8,3712.7,15.6]
[1641410279670,0.0345971,3713.8,3713.1,15.6]
[1641410279870,0.00682108,3713.6,3713.1,15.6]
[1641410280077,0.67303,3713.5,3713.1,16.27304]
[1641410280270,0.00625266,3713.5,3713.1,16.27304]
[1641410280512,0.67299,3714.1,3713.2,1.0]
[1641410280710,0.67299,3714.1,3714.0,1.10157973]
[1641410280913,2.01897,3714.1,3714.0,1.10157973]
[1641410281310,2.01897,3714.1,3714.0,1.77453973]
[1641410282315,0.67299,3714.1,3714.0,1.77453973]
[1641410282516,0.60623529,3714.1,3714.0,1.77453973]
[1641410282722,0.90623529,3714.1,3714.0,1.77453973]
[1641410282915,0.60623529,3714.1,3714.0,1.77453973]
[1641410283316,0.55623529,3714.1,3714.0,17.37453973]
[1641410283920,2.0,3714.2,3714.1,7.35]
[1641410284162,2.0,3714.2,3714.1,23.95]
[1641410284366,0.03805056,3714.7,3714.2,4.25]
[1641410284564,3.77464026,3715.4,3714.3,1.388]
[1641410284768,0.13819997,3715.5,3715.2,1.21645403]
[1641410284966,0.67283,3715.3,3715.2,1.21645403]
[1641410285168,0.70363156,3715.3,3715.2,1.16645403]
[1641410285567,0.67289,3715.0,3714.3,0.388]
[1641410285769,0.7104088,3715.0,3714.6,1.34576]
[1641410286067,0.7104088,3715.0,3713.7,2.36449823]
[1641410286068,0.97690896,3714.9,3713.8,0.388]
[1641410286273,0.97690896,3714.9,3713.7,1.36449823]
[1641410286274,0.34121685,3714.9,3713.7,1.36449823]
[1641410286468,0.03572901,3714.6,3714.2,0.67296]
[1641410286669,1.00576975,3714.7,3714.2,0.67296]
[1641410286867,0.00170527,3714.5,3714.2,0.67296]
[1641410287071,1.00576975,3714.7,3714.2,0.67296]
[1641410287072,0.00227369,3714.6,3714.2,0.67296]
[1641410287271,0.00113685,3714.4,3714.2,0.67296]
[1641410287474,0.00170527,3714.5,3714.2,0.67296]
[1641410287669,0.00227369,3714.6,3714.2,0.67296]
[1641410287930,0.3,3714.7,3714.3,1.10966077]
[1641410287931,0.00113685,3714.4,3714.3,1.10966077]
[1641410288118,0.00170527,3714.5,3714.3,1.10966077]
[1641410288318,0.3,3714.7,3714.3,1.10966077]
[1641410288319,0.00113685,3714.4,3714.3,1.10966077]
[1641410288821,0.00113685,3714.4,3714.3,16.70966077]
[1641410289023,0.00113685,3714.4,3714.3,1.10966077]
[1641410289822,0.13819997,3715.5,3714.9,0.67278]
[1641410290024,2.06778184,3715.4,3714.9,0.67278]
[1641410290223,2.07346607,3715.4,3714.9,0.67278]
[1641410290429,2.07346607,3715.4,3714.9,3.34946009]
[1641410290623,2.07346607,3715.4,3715.1,15.6]
[1641410290823,2.07346607,3715.4,3715.3,7.99608303]
[1641410291023,1.20084179,3715.9,3715.3,7.99608303]
[1641410291425,0.0022737,3715.8,3715.4,16.6]
[1641410291865,0.00170527,3715.7,3715.4,16.6]
[1641410292069,1.20084179,3716.4,3715.6,0.67261]
[1641410292269,1.20084179,3716.4,3715.7,0.388]
[1641410292468,4.99021165,3716.9,3715.7,0.388]
[1641410292469,0.00341054,3716.3,3715.7,0.388]
[1641410292667,1.20084179,3716.9,3716.1,2.01735]
[1641410292867,1.20084179,3716.9,3716.2,0.388]
[1641410293072,0.00284212,3716.8,3716.3,0.49757424]
[1641410293367,1.60180734,3717.2,3716.6,15.6]
[1641410293567,1.60180734,3717.2,3716.8,1.34469]
[1641410293771,0.00170527,3717.1,3716.8,1.34469]
[1641410293970,1.60180734,3717.8,3716.9,7.738]
[1641410294269,0.00170527,3717.4,3717.1,15.6]
[1641410294470,1.55180734,3717.8,3717.7,0.55211065]
[1641410294667,1.55180734,3717.8,3717.4,15.6]
[1641410294869,0.00170527,3717.7,3717.3,1.35709024]
[1641410295070,0.00170527,3717.7,3717.2,0.00113685]
[1641410295269,0.00113685,3717.6,3717.2,0.00113685]
[1641410295513,0.00113685,3717.6,3717.1,0.56037267]
[1641410295722,2.48677198,3718.6,3717.2,0.67233]
[1641410295920,2.57379847,3718.7,3717.2,0.67346685]
[1641410295921,0.67233,3718.5,3717.2,0.67346685]
[1641410296120,0.00341054,3718.0,3717.2,0.67346685]
[1641410296518,0.6576703,3718.5,3717.4,1.23090421]
[1641410296519,0.00284212,3717.9,3717.4,1.23090421]
[1641410296718,0.00284212,3717.9,3717.6,0.67232]
[1641410296918,0.00227369,3717.8,3717.6,0.67232]
[1641410297318,1.18579362,3718.5,3717.6,0.67232]
[1641410297319,0.00170527,3717.7,3717.6,0.67232]
[1641410297519,0.00170527,3717.7,3717.4,1.23090421]
[1641410297918,0.00113685,3717.6,3717.5,15.6]
[1641410298123,0.00113685,3717.6,3717.4,1.23090421]
[1641410298726,0.00113685,3717.6,3717.5,1.34454]
[1641410298924,0.00113685,3717.6,3717.4,1.23090421]
[1641410299370,0.00113685,3717.6,3717.3,0.67235]
[1641410299572,0.00113685,3717.6,3717.2,0.00113685]
[1641410299972,1.27360685,3717.6,3716.7,0.00397896]
[1641410300176,0.57032684,3717.2,3716.7,0.00397896]
[1641410300579,0.6,3717.2,3716.7,0.00397896]
[1641410300984,1.27248,3717.2,3716.6,0.00454739]
[1641410301184,1.9450163,3717.2,3716.6,0.00454739]
[1641410301380,1.97851548,3717.2,3716.6,0.00454739]
[1641410301781,1.00597918,3717.2,3716.7,0.67248]
[1641410301980,0.3,3717.2,3716.7,0.67248]
[1641410302281,0.6724,3717.5,3716.8,15.60341054]
[1641410302482,0.00199532,3717.6,3716.8,15.60341054]
[1641410302681,0.00199532,3717.6,3716.9,1.00284212]
[1641410302919,0.00199532,3717.6,3716.9,0.00284212]
[1641410303115,0.00199532,3717.6,3717.0,0.00227369]
[1641410303316,0.00199532,3717.6,3716.8,16.13594804]
[1641410303521,0.00199532,3717.6,3717.4,1.90815866]
[1641410303917,0.30199532,3717.6,3717.4,0.67235]
[1641410304115,0.30199532,3717.6,3717.3,1.37031375]
[1641410304116,0.60199532,3717.6,3717.3,1.37031375]
[1641410304520,0.610978,3717.3,3716.9,0.00284212]
[1641410304716,0.67247,3717.2,3716.9,0.00284212]
[1641410304916,0.6724923,3717.1,3716.5,1.37728498]
[1641410305122,1.01020207,3717.1,3716.5,1.38240079]
[1641410305323,1.01020207,3717.1,3716.6,15.60454739]
[1641410305623,1.01020207,3717.1,3716.7,0.00397896]
[1641410306032,1.01020207,3717.1,3716.6,0.00454739]
[1641410306660,0.6725,3716.8,3716.6,0.00454739]
[1641410306871,0.6725,3716.8,3716.7,0.67246]
[1641410307060,1.2725,3716.8,3716.7,0.67246]
[1641410307260,1.2725,3716.8,3716.7,0.67643896]
[1641410307462,0.6725,3716.8,3716.7,0.67643896]
[1641410307666,0.9725,3716.8,3716.7,0.67643896]
[1641410308668,1.2725,3716.8,3716.7,0.67643896]
[1641410309169,1.2725,3716.8,3716.1,0.5]
[1641410309369,0.01284531,3716.7,3716.1,0.30975154]
[1641410309565,0.01284531,3716.7,3716.2,0.00284212]
[1641410309566,0.9726612,3716.5,3716.2,0.00284212]
[1641410309769,0.67277,3716.4,3715.0,2.68979]
[1641410309967,0.6399991,3715.4,3714.5,3.6372]
[1641410310167,0.6399991,3715.4,3715.1,0.00625266]
[1641410310168,1.34565,3715.4,3715.1,0.00625266]
[1641410310440,0.6,3715.3,3715.1,0.00625266]
[1641410310638,0.6,3715.3,3714.8,0.00795793]
[1641410310841,0.6,3715.3,3714.8,15.60795793]
[1641410311041,1.4727686,3715.7,3714.9,0.67282]
[1641410311243,0.6728367,3715.2,3714.9,0.00738951]
[1641410311439,0.70916026,3715.2,3715.0,0.00682108]
[1641410311640,0.70916026,3715.2,3714.6,0.00909478]
[1641410311840,0.67299,3715.0,3714.6,0.00909478]
[1641410312040,1.0215691,3714.8,3714.0,1.35834532]
[1641410312441,1.0215691,3714.8,3714.1,0.01193689]
[1641410313249,1.0215691,3714.8,3713.6,0.45]
[1641410313250,2.05518829,3714.5,3713.6,0.45]
[1641410313445,1.346,3714.7,3713.6,0.45]
[1641410313446,1.12226443,3713.8,3713.6,0.45]
[1641410313645,0.3,3713.7,3713.6,0.45]
[1641410314048,0.55382822,3713.7,3713.6,0.45284212]
[1641410314288,0.67322,3713.5,3712.8,1.34626]
[1641410314490,0.3,3713.4,3712.8,1.34626]
[1641410314688,0.3,3713.4,3712.9,0.00397896]
[1641410314892,0.3,3713.4,3711.8,2.77910948]
[1641410314893,1.07180937,3713.3,3711.8,2.77910948]
[1641410315090,1.07180937,3713.3,3711.8,2.71695375]
[1641410315389,1.07180937,3713.3,3711.9,0.00568424]
[1641410315390,0.70683804,3712.4,3711.9,0.00568424]
[1641410315589,0.7079393,3712.3,3711.9,0.00568424]
[1641410315889,0.56125461,3712.2,3711.9,0.00568424]
[1641410316288,1.23468781,3712.2,3711.9,2.5114095]
[1641410316497,1.56958718,3712.2,3711.9,2.5114095]
[1641410316690,1.56958718,3712.2,3712.0,0.00511582]
[1641410317092,1.00833257,3712.2,3712.0,0.00511582]
[1641410317295,0.33489937,3712.2,3712.0,0.67848582]
[1641410317493,1.34692,3712.5,3711.7,0.00682109]
[1641410317693,1.37768287,3712.5,3712.1,0.00454739]
[1641410317931,1.37768287,3712.5,3711.7,0.00682109]
[1641410318326,0.6734949,3712.2,3711.6,0.00738951]
[1641410318528,1.3468798,3712.4,3712.0,4.57409287]
[1641410318529,0.71251901,3712.4,3712.0,4.57409287]
[1641410318726,0.71251901,3712.4,3712.0,5.89710409]
[1641410318927,0.71251901,3712.4,3712.1,0.00454739]
[1641410319135,1.01251901,3712.4,3712.1,0.00454739]
[1641410319331,0.3,3712.3,3712.1,0.00454739]
[1641410319533,0.3,3712.3,3712.1,3.87610454]
[1641410319732,0.67322,3712.6,3712.2,15.6]
[1641410319934,0.67322,3712.6,3712.2,0.00397897]
[1641410320138,0.67322,3712.6,3712.3,0.00341055]
[1641410320334,0.67322,3712.6,3712.2,2.20219612]
[1641410320535,0.67322,3712.6,3712.4,0.67328]
[1641410320937,0.3,3712.8,3712.5,0.0022737]
[1641410321136,0.70539598,3713.1,3712.5,1.3902737]
[1641410321336,0.3,3713.0,3712.6,15.6]
[1641410321536,0.6,3713.0,3712.7,1.0]
[1641410321780,0.3,3713.0,3712.9,1.2172035]
[1641410322173,1.00653282,3713.1,3712.9,1.2172035]
[1641410322376,0.70653282,3713.1,3712.9,1.2172035]
[1641410322574,0.70653282,3713.1,3712.9,3.41542065]
[1641410323175,0.70653282,3713.1,3712.8,4.97365937]
[1641410323376,0.70653282,3713.1,3712.8,4.55823872]
[1641410323877,0.3,3713.0,3712.8,4.55823872]
[1641410324280,0.9732346,3713.0,3712.8,4.55823872]
[1641410324678,1.01103865,3713.0,3712.8,4.55823872]
[1641410324878,1.01103865,3713.0,3712.7,0.00113685]
[1641410325076,1.01103865,3713.0,3712.1,6.0987905]
[1641410325077,1.34669,3712.9,3712.1,6.0987905]
[1641410325280,0.03786464,3712.7,3712.3,0.67331]
[1641410325521,2.56753605,3712.8,3712.3,0.67331]
[1641410325821,0.70803284,3712.7,3712.3,0.67331]
[1641410326021,0.6,3712.6,3712.3,0.67331]
[1641410326222,0.67328,3712.5,3712.4,15.6]
[1641410326631,0.25,3712.5,3712.4,1.0]
[1641410326833,0.3404806,3713.0,3712.4,1.00284212]
[1641410327030,0.3404806,3713.0,3712.4,2.79119558]
[1641410327231,1.34657,3712.6,3712.5,0.00227369]
[1641410327431,0.70858569,3712.9,3712.5,1.00227369]
[1641410327630,0.70858569,3712.9,3712.6,0.67325]
[1641410327831,0.70858569,3712.9,3712.6,0.67495527]
[1641410328034,0.03530569,3712.9,3712.7,15.60113684]
[1641410328232,0.3,3712.8,3712.7,15.60113684]
[1641410328433,2.05761429,3713.5,3712.7,15.60113684]
[1641410328631,2.05761429,3713.5,3712.9,1.34623]
[1641410328632,0.71074016,3713.2,3712.9,1.34623]
[1641410328832,0.3,3713.1,3712.9,1.34623]
[1641410329031,0.3,3713.1,3712.7,0.00113684]
[1641410329032,0.30113685,3713.1,3712.7,0.00113684]
[1641410329272,1.64762685,3713.1,3712.7,0.00113684]
[1641410329477,1.4712,3712.8,3712.6,0.00170527]
[1641410329676,0.70958867,3712.8,3712.6,0.00170527]
[1641410329873,0.65232964,3712.7,3712.6,0.00170527]
[1641410330071,0.95232964,3712.7,3712.1,0.00454738]
[1641410330272,0.95232964,3712.7,3711.9,2.55256559]
[1641410330273,0.67339,3712.5,3712.0,0.00511581]
[1641410330671,0.97339,3712.5,3712.0,0.00511581]
[1641410330880,1.27339,3712.5,3712.0,0.00511581]
[1641410331378,1.27339,3712.5,3712.0,4.56349439]
[1641410331578,1.94678,3712.5,3712.0,4.56349439]
[1641410331780,0.6733804,3712.4,3712.1,0.00454738]
[1641410331985,0.7122236,3712.4,3712.1,0.00454738]
[1641410333224,0.7122236,3712.4,3712.0,0.00511581]
[1641410333422,0.7122236,3712.4,3712.0,2.79346927]
[1641410333823,0.7122236,3712.4,3712.1,0.00454738]
[1641410334225,0.70504753,3712.4,3712.1,0.00454738]
[1641410334427,0.70504753,3712.4,3712.2,0.67334]
[1641410334630,0.0388432,3712.4,3712.0,0.00511581]
[1641410334828,4.56895281,3712.5,3712.0,2.78835346]
[1641410335026,6.56895281,3712.5,3712.0,2.78835346]
[1641410335225,3.35,3712.3,3711.9,4.55837858]
[1641410335425,4.05752451,3712.2,3711.9,4.55837858]
[1641410335627,0.3,3712.0,3711.9,4.55837858]
[1641410335826,0.6735875,3711.7,3711.4,6.0987905]
[1641410336028,0.9735875,3711.7,3711.3,4.55910481]
[1641410336226,1.00618965,3711.7,3711.3,4.55910481]
[1641410336428,2.0,3711.5,3711.4,0.00511581]
[1641410336679,2.0,3711.5,3710.4,6.0987905]
[1641410336680,2.0360075,3711.5,3710.4,6.0987905]
[1641410336882,0.03842871,3710.6,3710.4,6.0987905]
[1641410337080,0.03842871,3710.6,3710.5,0.00511581]
[1641410337287,0.3,3710.8,3710.5,0.00511581]
[1641410337480,0.67374,3710.6,3710.5,0.00511581]
[1641410337680,0.03398414,3710.6,3710.5,0.00511581]
[1641410337880,1.64747,3710.7,3710.4,1.05812188]
[1641410338084,0.3,3710.7,3710.4,1.05812188]
[1641410338482,0.3,3710.8,3710.4,1.05812188]
[1641410338682,0.3,3710.8,3710.1,0.0073895]
[1641410338882,1.34739,3711.0,3710.1,0.0073895]
[1641410339081,0.3,3710.9,3710.2,0.67369]
[1641410339282,0.37314986,3710.7,3710.1,15.6073895]
[1641410339482,0.67314986,3710.7,3710.3,0.00625265]
[1641410339682,0.67314986,3710.7,3710.2,1.36460337]
[1641410339888,0.97314986,3710.7,3710.1,0.0073895]
[1641410340083,0.3,3710.4,3710.3,0.00625265]
[1641410340283,0.3,3710.4,3710.1,0.0073895]
[1641410340525,0.71367371,3710.5,3710.1,0.0073895]
[1641410340724,0.3,3710.4,3710.1,0.0073895]
[1641410341325,0.3,3710.4,3709.9,1.20969996]
[1641410341326,0.3,3710.4,3709.9,1.17708946]
[1641410341530,1.12524159,3710.6,3710.0,15.6]
[1641410341729,1.12524159,3710.6,3709.9,1.18996333]
[1641410341928,0.00113684,3710.5,3710.0,0.00170528]
[1641410342329,0.67484684,3710.5,3710.1,0.67363]
[1641410342534,0.67484684,3710.5,3710.2,15.6]
[1641410342732,0.67484684,3710.5,3710.1,0.67443572]
[1641410342933,1.33841427,3710.5,3710.1,0.67443572]
[1641410343134,0.3,3710.4,3710.1,0.00080572]
[1641410344170,0.3,3710.4,3710.0,0.00170528]
[1641410344171,0.3,3710.4,3709.3,0.5]
[1641410344376,0.67392,3709.9,3709.3,0.5]
[1641410344571,2.11692091,3709.9,3709.4,0.00341054]
[1641410344776,0.6739,3709.7,3709.4,0.00341054]
[1641410344976,0.6738865,3709.6,3709.4,0.00341054]
[1641410345776,1.64779,3709.7,3709.4,15.60341054]
[1641410345777,0.3,3709.7,3709.4,15.60341054]
[1641410345975,0.6,3709.9,3709.4,15.60341054]
[1641410346176,0.3,3709.7,3709.5,0.00284211]
[1641410346376,0.3,3709.9,3709.5,0.00284211]
[1641410346575,0.67544008,3710.3,3709.6,1.03573623]
[1641410346975,0.00113685,3710.2,3709.7,0.00170527]
[1641410347377,0.30113685,3710.2,3709.7,0.00170527]
[1641410347576,0.67375,3709.9,3709.7,0.00170527]
[1641410347781,0.67375,3709.9,3709.7,0.67546527]
[1641410348022,0.67375,3709.9,3709.7,0.00170527]
[1641410348322,0.97375,3709.9,3709.7,0.00170527]
[1641410349129,1.27375,3709.9,3709.7,0.00170527]
[1641410349328,1.27375,3709.9,3709.5,0.00284211]
[1641410349531,1.34794,3709.8,3709.5,0.00284211]
[1641410349732,1.34794,3709.8,3707.7,1.32872262]
[1641410349733,7.36237426,3709.6,3707.7,1.32872262]
[1641410349933,1.93531439,3708.3,3707.7,1.32872262]
[1641410350136,0.97427,3708.3,3707.8,0.0096632]
[1641410350732,0.3,3708.2,3707.8,0.0096632]
[1641410350931,0.3,3708.2,3707.5,0.01136847]
[1641410351132,0.3,3708.2,3707.4,1.08779724]
[1641410351133,0.6742,3707.9,3707.4,0.99916571]
[1641410351332,0.3,3707.8,3707.4,0.99916571]
[1641410351531,0.00170527,3707.8,3707.4,0.99916571]
[1641410351772,0.00113685,3707.7,3707.4,0.99916571]
[1641410352172,0.00170527,3707.8,3707.5,0.67413]
[1641410352371,0.00170527,3707.8,3707.5,16.27413]
[1641410352572,0.00113685,3707.7,3707.5,16.27413]
[1641410352982,0.60341054,3708.1,3707.5,16.27413]
[1641410353179,0.60341054,3708.1,3708.0,4.50180189]
[1641410353378,0.60341054,3708.1,3707.6,0.00104329]
[1641410353379,0.6,3708.1,3707.9,5.1031752]
[1641410353780,0.00284212,3708.0,3707.9,5.1031752]
[1641410354479,0.00284212,3708.0,3707.9,6.15297792]
[1641410355546,0.00284212,3708.0,3707.9,4.4290952]
[1641410355739,0.00284212,3708.0,3707.7,1.34809]
[1641410356142,0.00227369,3707.9,3707.7,1.34809]
[1641410356442,0.00170527,3707.8,3707.7,1.34809]
[1641410356841,0.23612228,3708.0,3707.7,1.34913226]
[1641410357039,0.23612228,3708.0,3707.7,1.35083753]
[1641410357240,0.23612228,3708.0,3707.8,0.00217911]
[1641410357645,0.23612228,3708.0,3707.6,0.00104329]
[1641410357646,0.23612228,3708.0,3707.7,0.00274753]
[1641410358443,0.23612228,3708.0,3707.8,4.57606795]
[1641410358646,4.438,3707.9,3707.7,0.00274753]